[Event "Live Chess"]
[Site "Chess.com"]
[Date "2024.06.02"]
[Round "-"]
[White "lateforthesky"]
[Black "seasidecastle27"]
[Result "1-0"]
[WhiteElo "2044"]
[BlackElo "1942"]
[TimeControl "300"]
[EndTime "5:06:02 PDT"]
[Termination "lateforthesky won by checkmate"]

1. e4 {[%clk 0:04:56.9]} 1... e6 {[%clk 0:04:58.9]} 2. d4 {[%clk 0:04:54.5]}
2... d5 {[%clk 0:04:57.8]} 3. e5 {[%clk 0:04:53.9]} 3... c5 {[%clk 0:04:56.5]}
4. c3 {[%clk 0:04:53.1]} 4... Nc6 {[%clk 0:04:55.2]} 5. Nf3 {[%clk 0:04:52.2]}
5... Bd7 {[%clk 0:04:53.8]} 6. Be2 {[%clk 0:04:51]} 6... Qb6 {[%clk 0:04:50.3]}
7. O-O {[%clk 0:04:48.8]} 7... Nge7 {[%clk 0:04:41.7]} 8. Na3 {[%clk 0:04:45.8]}
8... Nf5 {[%clk 0:04:38.4]} 9. Nc2 {[%clk 0:04:44.2]} 9... cxd4 {[%clk
0:04:35.3]} 10. cxd4 {[%clk 0:04:42.5]} 10... Nb4 {[%clk 0:04:30]} 11. Nxb4
{[%clk 0:04:40.2]} 11... Bxb4 {[%clk 0:04:26.8]} 12. g4 {[%clk 0:04:29.6]} 12...
Nh6 {[%clk 0:04:20]} 13. h3 {[%clk 0:04:28.2]} 13... Bb5 {[%clk 0:04:09.3]} 14.
Kg2 {[%clk 0:04:25.2]} 14... Bxe2 {[%clk 0:04:03.4]} 15. Qxe2 {[%clk 0:04:23.7]}
15... Rc8 {[%clk 0:04:01.2]} 16. a3 {[%clk 0:04:05.8]} 16... Be7 {[%clk
0:03:55.7]} 17. Be3 {[%clk 0:04:00.9]} 17... O-O {[%clk 0:03:51.8]} 18. Rfc1
{[%clk 0:03:52]} 18... Rc6 {[%clk 0:03:24.6]} 19. Rxc6 {[%clk 0:03:45.4]} 19...
bxc6 {[%clk 0:03:23.1]} 20. Rc1 {[%clk 0:03:41.7]} 20... Rb8 {[%clk 0:03:18.7]}
21. Ne1 {[%clk 0:03:28.6]} 21... Kf8 {[%clk 0:03:01.4]} 22. Nd3 {[%clk
0:03:17.1]} 22... Ng8 {[%clk 0:02:58]} 23. Qc2 {[%clk 0:03:15.1]} 23... Rc8
{[%clk 0:02:51.5]} 24. b4 {[%clk 0:03:14.1]} 24... a5 {[%clk 0:02:47.4]} 25. Nc5
{[%clk 0:03:02.3]} 25... Bxc5 {[%clk 0:02:39.6]} 26. bxc5 {[%clk 0:02:54.5]}
26... Qa7 {[%clk 0:02:29.8]} 27. Rb1 {[%clk 0:02:51.1]} 27... Rb8 {[%clk
0:02:28]} 28. Bd2 {[%clk 0:02:50.7]} 28... Rb5 {[%clk 0:02:11.8]} 29. a4 {[%clk
0:02:47.1]} 29... Rxb1 {[%clk 0:02:05.6]} 30. Qxb1 {[%clk 0:02:47]} 30... Ne7
{[%clk 0:01:52.3]} 31. Qb6 {[%clk 0:02:41.4]} 31... Qa8 {[%clk 0:01:40.4]} 32.
Qxa5 {[%clk 0:02:31.5]} 32... Qe8 {[%clk 0:01:32.8]} 33. Qa7 {[%clk 0:02:22.4]}
33... f6 {[%clk 0:01:31.6]} 34. exf6 {[%clk 0:02:07.7]} 34... gxf6 {[%clk
0:01:30.4]} 35. a5 {[%clk 0:02:06.3]} 35... Qg6 {[%clk 0:01:29.3]} 36. Be3
{[%clk 0:01:53.4]} 36... Qe4+ {[%clk 0:01:24.7]} 37. Kg1 {[%clk 0:01:48.3]}
37... Qb1+ {[%clk 0:01:19.4]} 38. Kh2 {[%clk 0:01:46.4]} 38... f5 {[%clk
0:01:11.1]} 39. Qd7 {[%clk 0:01:37.1]} 39... Qe4 {[%clk 0:01:08.4]} 40. Bg5
{[%clk 0:01:29.3]} 40... Ng6 {[%clk 0:00:55.5]} 41. Bh6+ {[%clk 0:01:24.1]}
41... Kg8 {[%clk 0:00:51.2]} 42. Qg7# {[%clk 0:01:22.9]} 1-0

[Event "Live Chess"]
[Site "Chess.com"]
[Date "2024.06.02"]
[Round "-"]
[White "RichardABates"]
[Black "juniortay"]
[Result "1/2-1/2"]
[WhiteElo "2340"]
[BlackElo "2355"]
[TimeControl "300"]
[EndTime "5:06:12 PDT"]
[Termination "Game drawn by repetition"]

1. d4 {[%clk 0:04:56.5]} 1... d5 {[%clk 0:04:59.1]} 2. c4 {[%clk 0:04:55.1]}
2... e6 {[%clk 0:04:58.3]} 3. Nf3 {[%clk 0:04:51.7]} 3... c5 {[%clk 0:04:56.7]}
4. cxd5 {[%clk 0:04:49.9]} 4... exd5 {[%clk 0:04:56.6]} 5. Nc3 {[%clk
0:04:48.5]} 5... Nc6 {[%clk 0:04:55.9]} 6. dxc5 {[%clk 0:04:36.2]} 6... d4
{[%clk 0:04:54.3]} 7. Na4 {[%clk 0:04:35.1]} 7... Bxc5 {[%clk 0:04:52.7]} 8.
Nxc5 {[%clk 0:04:34.2]} 8... Qa5+ {[%clk 0:04:51.9]} 9. Bd2 {[%clk 0:04:32.6]}
9... Qxc5 {[%clk 0:04:51]} 10. Rc1 {[%clk 0:04:30.9]} 10... Qb6 {[%clk
0:04:49.9]} 11. e3 {[%clk 0:04:26.6]} 11... Nge7 {[%clk 0:04:40.2]} 12. Bc4
{[%clk 0:04:20.4]} 12... O-O {[%clk 0:04:37.7]} 13. O-O {[%clk 0:04:19]} 13...
Rd8 {[%clk 0:04:30.1]} 14. Ng5 {[%clk 0:04:03.2]} 14... Ne5 {[%clk 0:04:23.5]}
15. Bb3 {[%clk 0:03:29.3]} 15... h6 {[%clk 0:04:20.5]} 16. exd4 {[%clk
0:03:16.5]} 16... Qxd4 {[%clk 0:04:03.8]} 17. Bc3 {[%clk 0:02:54]} 17... Qxd1
{[%clk 0:03:47.5]} 18. Rcxd1 {[%clk 0:02:52.4]} 18... Bg4 {[%clk 0:03:46.3]} 19.
f3 {[%clk 0:02:36]} 19... Bh5 {[%clk 0:03:17.3]} 20. Bxe5 {[%clk 0:02:31.2]}
20... hxg5 {[%clk 0:03:13.8]} 21. Bc7 {[%clk 0:02:18.5]} 21... Rdc8 {[%clk
0:03:03.8]} 22. Rd7 {[%clk 0:02:13.4]} 22... Nc6 {[%clk 0:03:00.3]} 23. Re1
{[%clk 0:02:05.1]} 23... Re8 {[%clk 0:02:58]} 24. Rxe8+ {[%clk 0:01:58.1]} 24...
Rxe8 {[%clk 0:02:56.8]} 25. Kf2 {[%clk 0:01:56.4]} 25... Bg6 {[%clk 0:02:36.6]}
26. Bd6 {[%clk 0:01:43.4]} 26... Nd4 {[%clk 0:02:18.4]} 27. Rxb7 {[%clk
0:01:34.9]} 27... Re2+ {[%clk 0:02:14.9]} 28. Kf1 {[%clk 0:01:27.5]} 28... Bd3
{[%clk 0:01:57.9]} 29. Bxf7+ {[%clk 0:01:21]} 29... Kh7 {[%clk 0:01:53.9]} 30.
Kg1 {[%clk 0:01:04.9]} 30... Re1+ {[%clk 0:01:45.9]} 31. Kf2 {[%clk 0:01:03.4]}
31... Re2+ {[%clk 0:01:44.7]} 32. Kg1 {[%clk 0:00:59.1]} 32... Re1+ {[%clk
0:01:26.3]} 33. Kf2 {[%clk 0:00:57.6]} 33... Re2+ {[%clk 0:01:25]} 34. Kg1
{[%clk 0:00:56.2]} 1/2-1/2

[Event "Live Chess"]
[Site "Chess.com"]
[Date "2024.06.02"]
[Round "-"]
[White "TheSmoulderingMaster"]
[Black "Queensandpawns"]
[Result "0-1"]
[WhiteElo "1772"]
[BlackElo "2264"]
[TimeControl "300"]
[EndTime "5:06:25 PDT"]
[Termination "Queensandpawns won by checkmate"]

1. e4 {[%clk 0:04:56.7]} 1... e5 {[%clk 0:04:58.3]} 2. Nf3 {[%clk 0:04:54.5]}
2... Nf6 {[%clk 0:04:58.2]} 3. Nxe5 {[%clk 0:04:52.9]} 3... Nc6 {[%clk
0:04:58.1]} 4. Nxc6 {[%clk 0:04:51.9]} 4... dxc6 {[%clk 0:04:58]} 5. Bc4 {[%clk
0:04:50.4]} 5... Bc5 {[%clk 0:04:54.9]} 6. O-O {[%clk 0:04:49]} 6... Ng4 {[%clk
0:04:51.6]} 7. h3 {[%clk 0:04:46.6]} 7... Nxf2 {[%clk 0:04:48]} 8. Rxf2 {[%clk
0:04:45.6]} 8... Bxf2+ {[%clk 0:04:47.5]} 9. Kxf2 {[%clk 0:04:43.5]} 9... Qd4+
{[%clk 0:04:46.8]} 10. Kf1 {[%clk 0:04:42.1]} 10... Qxc4+ {[%clk 0:04:46.7]} 11.
d3 {[%clk 0:04:41.4]} 11... Qe6 {[%clk 0:04:44.4]} 12. Nc3 {[%clk 0:04:40.3]}
12... Bd7 {[%clk 0:04:43.8]} 13. Be3 {[%clk 0:04:38.4]} 13... O-O-O {[%clk
0:04:43.3]} 14. a4 {[%clk 0:04:33.1]} 14... f5 {[%clk 0:04:42.1]} 15. a5 {[%clk
0:04:30.5]} 15... f4 {[%clk 0:04:40.3]} 16. Bxa7 {[%clk 0:04:24.9]} 16... f3
{[%clk 0:04:38.1]} 17. gxf3 {[%clk 0:04:21.7]} 17... Qxh3+ {[%clk 0:04:37.3]}
18. Ke2 {[%clk 0:04:20.4]} 18... Rhf8 {[%clk 0:04:34.2]} 19. Kd2 {[%clk
0:04:17.2]} 19... Qg2+ {[%clk 0:04:32.5]} 20. Ne2 {[%clk 0:04:16]} 20... Qxf3
{[%clk 0:04:27.6]} 21. c3 {[%clk 0:04:14.5]} 21... Bg4 {[%clk 0:04:24.7]} 22.
Nd4 {[%clk 0:04:10.5]} 22... Qxd1+ {[%clk 0:04:23]} 23. Rxd1 {[%clk 0:04:09.5]}
23... Bxd1 {[%clk 0:04:22.9]} 24. Kxd1 {[%clk 0:04:08.7]} 24... Rf2 {[%clk
0:04:21.3]} 25. a6 {[%clk 0:04:03.9]} 25... Rxb2 {[%clk 0:04:17.1]} 26. axb7+
{[%clk 0:04:01.7]} 26... Kxb7 {[%clk 0:04:17]} 27. Bc5 {[%clk 0:04:00.8]} 27...
Ra8 {[%clk 0:04:15.3]} 28. e5 {[%clk 0:03:53.2]} 28... Ra1# {[%clk 0:04:14.3]}
0-1

[Event "Live Chess"]
[Site "Chess.com"]
[Date "2024.06.02"]
[Round "-"]
[White "ZatixMajor"]
[Black "ClassyChameleon"]
[Result "1-0"]
[WhiteElo "2035"]
[BlackElo "1555"]
[TimeControl "300"]
[EndTime "5:06:58 PDT"]
[Termination "ZatixMajor won on time"]

1. c4 {[%clk 0:04:58.4]} 1... e5 {[%clk 0:04:57.5]} 2. g3 {[%clk 0:04:57.9]}
2... Nc6 {[%clk 0:04:56.5]} 3. Bg2 {[%clk 0:04:57.3]} 3... Bc5 {[%clk 0:04:55]}
4. Nc3 {[%clk 0:04:56.6]} 4... Nf6 {[%clk 0:04:53.8]} 5. Nf3 {[%clk 0:04:56.2]}
5... O-O {[%clk 0:04:52.4]} 6. O-O {[%clk 0:04:54.8]} 6... d6 {[%clk 0:04:51]}
7. d3 {[%clk 0:04:53.7]} 7... a6 {[%clk 0:04:48.7]} 8. a3 {[%clk 0:04:50.5]}
8... Bg4 {[%clk 0:04:46.4]} 9. Bg5 {[%clk 0:04:47.8]} 9... h6 {[%clk 0:04:44.7]}
10. b4 {[%clk 0:04:38.4]} 10... Ba7 {[%clk 0:04:32.5]} 11. Bd2 {[%clk 0:04:34]}
11... Nd4 {[%clk 0:04:27.2]} 12. Nxd4 {[%clk 0:04:31.4]} 12... exd4 {[%clk
0:04:26.6]} 13. Ne4 {[%clk 0:04:29.6]} 13... Nxe4 {[%clk 0:04:25.3]} 14. Bxe4
{[%clk 0:04:29.5]} 14... Re8 {[%clk 0:04:08.7]} 15. Kg2 {[%clk 0:04:15.6]} 15...
c6 {[%clk 0:04:06.5]} 16. h3 {[%clk 0:04:12.1]} 16... d5 {[%clk 0:03:59.7]} 17.
hxg4 {[%clk 0:04:09]} 17... dxe4 {[%clk 0:03:58.2]} 18. Rh1 {[%clk 0:04:03.4]}
18... e3 {[%clk 0:03:51.9]} 19. fxe3 {[%clk 0:03:58.7]} 19... dxe3 {[%clk
0:03:51.2]} 20. Bc3 {[%clk 0:03:57.7]} 20... Bd4 {[%clk 0:03:49.6]} 21. Qc2
{[%clk 0:03:51.3]} 21... Qf6 {[%clk 0:03:43]} 22. Raf1 {[%clk 0:03:48.1]} 22...
Qd6 {[%clk 0:03:33.1]} 23. c5 {[%clk 0:03:42]} 23... Qd5+ {[%clk 0:03:28.7]} 24.
Kg1 {[%clk 0:03:38.5]} 24... Re6 {[%clk 0:03:22.8]} 25. Qb2 {[%clk 0:03:34.7]}
25... Bxc3 {[%clk 0:03:20.5]} 26. Qxc3 {[%clk 0:03:34.6]} 26... Rg6 {[%clk
0:03:19.6]} 27. Rf4 {[%clk 0:03:28.7]} 27... Re8 {[%clk 0:03:16]} 28. Kh2 {[%clk
0:03:25.5]} 28... Ree6 {[%clk 0:02:27.7]} 29. Rhf1 {[%clk 0:03:21.4]} 29... f6
{[%clk 0:02:06.9]} 30. Rf5 {[%clk 0:03:20.1]} 30... Qd7 {[%clk 0:01:57.4]} 31.
Qc4 {[%clk 0:03:18.4]} 31... Kh7 {[%clk 0:01:51.7]} 32. Qf4 {[%clk 0:03:16.4]}
32... Qf7 {[%clk 0:01:42]} 33. Rf3 {[%clk 0:03:13.4]} 33... Qe7 {[%clk
0:01:34.4]} 34. Rh5 {[%clk 0:03:03]} 34... Rg5 {[%clk 0:01:30.8]} 35. Rxg5
{[%clk 0:02:59.7]} 35... hxg5 {[%clk 0:01:29]} 36. Qc4 {[%clk 0:02:53.9]} 36...
Qd7 {[%clk 0:01:05.6]} 37. Kg2 {[%clk 0:02:48.9]} 37... Kg6 {[%clk 0:00:46.6]}
38. Qc1 {[%clk 0:02:35.3]} 38... Kf7 {[%clk 0:00:40.5]} 39. Rxe3 {[%clk
0:02:30.8]} 39... Rxe3 {[%clk 0:00:38.8]} 40. Qxe3 {[%clk 0:02:30.7]} 40... Qd5+
{[%clk 0:00:37.6]} 41. Qf3 {[%clk 0:02:25.4]} 41... Qa2 {[%clk 0:00:35.8]} 42.
d4 {[%clk 0:02:22.9]} 42... Qa1 {[%clk 0:00:19.5]} 43. Qd3 {[%clk 0:02:20.1]}
43... Qa2 {[%clk 0:00:12.9]} 44. Kf3 {[%clk 0:02:15.6]} 44... g6 {[%clk
0:00:10.3]} 45. e4 {[%clk 0:02:13.3]} 45... Qa1 {[%clk 0:00:06.1]} 46. Qc4+
{[%clk 0:02:03.6]} 46... Kg7 {[%clk 0:00:05.2]} 47. Qe2 {[%clk 0:01:52.5]} 47...
Qxa3+ {[%clk 0:00:04.1]} 48. Qe3 {[%clk 0:01:48.9]} 48... Qxb4 {[%clk
0:00:03.2]} 49. e5 {[%clk 0:01:47.9]} 1-0

[Event "Live Chess"]
[Site "Chess.com"]
[Date "2024.06.02"]
[Round "-"]
[White "Victor_Bondar"]
[Black "MovebyMove"]
[Result "0-1"]
[WhiteElo "1460"]
[BlackElo "2486"]
[TimeControl "300"]
[EndTime "5:07:06 PDT"]
[Termination "MovebyMove won by checkmate"]

1. e4 {[%clk 0:04:56.8]} 1... e5 {[%clk 0:04:57.7]} 2. Nf3 {[%clk 0:04:55.4]}
2... Nc6 {[%clk 0:04:56.7]} 3. d4 {[%clk 0:04:54.4]} 3... exd4 {[%clk
0:04:55.2]} 4. Nxd4 {[%clk 0:04:53.6]} 4... Nf6 {[%clk 0:04:53.2]} 5. Nxc6
{[%clk 0:04:49.2]} 5... bxc6 {[%clk 0:04:51.7]} 6. Bd3 {[%clk 0:04:47.8]} 6...
d5 {[%clk 0:04:47.7]} 7. exd5 {[%clk 0:04:42.6]} 7... cxd5 {[%clk 0:04:46.3]} 8.
O-O {[%clk 0:04:41.1]} 8... Be7 {[%clk 0:04:45.5]} 9. Re1 {[%clk 0:04:37.2]}
9... O-O {[%clk 0:04:44]} 10. Bg5 {[%clk 0:04:36.6]} 10... h6 {[%clk 0:04:40.9]}
11. Bh4 {[%clk 0:04:33.8]} 11... c5 {[%clk 0:04:31.1]} 12. Nc3 {[%clk 0:04:31]}
12... Be6 {[%clk 0:04:20.7]} 13. h3 {[%clk 0:04:20.4]} 13... c4 {[%clk
0:04:10.6]} 14. Bf1 {[%clk 0:04:18.4]} 14... Rb8 {[%clk 0:03:58.6]} 15. Rb1
{[%clk 0:04:12.6]} 15... Qa5 {[%clk 0:03:42.9]} 16. a3 {[%clk 0:04:07]} 16...
Rfd8 {[%clk 0:03:40.6]} 17. Qd4 {[%clk 0:03:46.6]} 17... Qb6 {[%clk 0:03:22.3]}
18. Qe5 {[%clk 0:03:20.3]} 18... Bd6 {[%clk 0:02:47.1]} 19. Qe2 {[%clk
0:02:57.4]} 19... g5 {[%clk 0:02:44.3]} 20. Nd1 {[%clk 0:02:23.9]} 20... gxh4
{[%clk 0:02:41.5]} 21. Ne3 {[%clk 0:02:08.2]} 21... Kh7 {[%clk 0:02:38.4]} 22.
Ng4 {[%clk 0:02:02.2]} 22... Nxg4 {[%clk 0:02:30.4]} 23. hxg4 {[%clk 0:02:00.9]}
23... Rg8 {[%clk 0:02:26.7]} 24. Kh1 {[%clk 0:01:55.5]} 24... Rxg4 {[%clk
0:02:21.7]} 25. f3 {[%clk 0:01:50.6]} 25... Rg3 {[%clk 0:02:15.7]} 26. Red1
{[%clk 0:01:23.2]} 26... Rbg8 {[%clk 0:02:09.4]} 27. c3 {[%clk 0:01:21.3]} 27...
h3 {[%clk 0:02:07]} 28. Rd4 {[%clk 0:01:01.3]} 28... hxg2+ {[%clk 0:01:56.7]}
29. Bxg2 {[%clk 0:00:58.5]} 29... Rxg2 {[%clk 0:01:55.7]} 30. Qxg2 {[%clk
0:00:55.3]} 30... Rxg2 {[%clk 0:01:53.5]} 31. Kxg2 {[%clk 0:00:54.4]} 31... Be5
{[%clk 0:01:48.4]} 32. Rh4 {[%clk 0:00:50.5]} 32... Qe3 {[%clk 0:01:44]} 33.
Rbh1 {[%clk 0:00:44.1]} 33... Bf4 {[%clk 0:01:31.7]} 34. a4 {[%clk 0:00:36.7]}
34... Qe2+ {[%clk 0:01:26]} 35. Kg1 {[%clk 0:00:33.2]} 35... Be3# {[%clk
0:01:24.3]} 0-1

[Event "Live Chess"]
[Site "Chess.com"]
[Date "2024.06.02"]
[Round "-"]
[White "booktrunk"]
[Black "RuslanChessN"]
[Result "0-1"]
[WhiteElo "1505"]
[BlackElo "1920"]
[TimeControl "300"]
[EndTime "5:07:19 PDT"]
[Termination "RuslanChessN won by resignation"]

1. d4 {[%clk 0:04:55.5]} 1... d5 {[%clk 0:04:58.6]} 2. Nc3 {[%clk 0:04:54.1]}
2... Bf5 {[%clk 0:04:55.6]} 3. Bf4 {[%clk 0:04:50.2]} 3... e6 {[%clk 0:04:54.9]}
4. Nf3 {[%clk 0:04:36.9]} 4... Nf6 {[%clk 0:04:52.5]} 5. e3 {[%clk 0:04:13.7]}
5... Bd6 {[%clk 0:04:51.5]} 6. Bxd6 {[%clk 0:03:48.7]} 6... Qxd6 {[%clk
0:04:51.4]} 7. Be2 {[%clk 0:03:47.6]} 7... O-O {[%clk 0:04:48.8]} 8. O-O {[%clk
0:03:29.7]} 8... b6 {[%clk 0:04:44.2]} 9. a3 {[%clk 0:03:21.4]} 9... c5 {[%clk
0:04:41.7]} 10. Nb5 {[%clk 0:03:19.6]} 10... Qe7 {[%clk 0:04:37.3]} 11. dxc5
{[%clk 0:03:17.2]} 11... bxc5 {[%clk 0:04:35.5]} 12. Ne5 {[%clk 0:03:14.2]}
12... Nbd7 {[%clk 0:04:29.6]} 13. Nc7 {[%clk 0:03:04.7]} 13... Rab8 {[%clk
0:04:16.6]} 14. Rb1 {[%clk 0:03:02.4]} 14... Nxe5 {[%clk 0:04:13]} 15. Na6
{[%clk 0:02:55.4]} 15... Rb6 {[%clk 0:04:08.4]} 16. b4 {[%clk 0:02:51.6]} 16...
Nfd7 {[%clk 0:03:57.6]} 17. bxc5 {[%clk 0:02:48.3]} 17... Nxc5 {[%clk 0:03:56]}
18. Nb4 {[%clk 0:02:46.8]} 18... Rfb8 {[%clk 0:03:48.2]} 19. Qd2 {[%clk
0:02:40.7]} 19... Ne4 {[%clk 0:03:44.1]} 20. Qd3 {[%clk 0:02:37.2]} 20... Nxd3
{[%clk 0:03:41.7]} 0-1

[Event "Live Chess"]
[Site "Chess.com"]
[Date "2024.06.02"]
[Round "-"]
[White "jimwad"]
[Black "Ninifu"]
[Result "0-1"]
[WhiteElo "1302"]
[BlackElo "2010"]
[TimeControl "300"]
[EndTime "5:07:23 PDT"]
[Termination "Ninifu won by resignation"]

1. c4 {[%clk 0:04:59.2]} 1... e5 {[%clk 0:04:53.8]} 2. g3 {[%clk 0:04:57.9]}
2... Nf6 {[%clk 0:04:52.9]} 3. Bg2 {[%clk 0:04:57.2]} 3... d5 {[%clk 0:04:52.2]}
4. cxd5 {[%clk 0:04:55.8]} 4... Nxd5 {[%clk 0:04:51.5]} 5. d4 {[%clk 0:04:54.6]}
5... Nb4 {[%clk 0:04:39.3]} 6. Qa4+ {[%clk 0:04:36.1]} 6... N8c6 {[%clk
0:04:35.6]} 7. Bxc6+ {[%clk 0:04:28.5]} 7... Nxc6 {[%clk 0:04:33.5]} 8. dxe5
{[%clk 0:04:25.2]} 8... Bd7 {[%clk 0:04:20.7]} 9. Bf4 {[%clk 0:04:16.3]} 9...
Bb4+ {[%clk 0:04:05.5]} 10. Nc3 {[%clk 0:04:09.3]} 10... Qe7 {[%clk 0:04:03.1]}
11. Qc2 {[%clk 0:03:53]} 11... O-O-O {[%clk 0:03:51.5]} 12. O-O-O {[%clk
0:03:41.4]} 12... Bf5 {[%clk 0:03:48.3]} 13. e4 {[%clk 0:03:30.9]} 13... Bg6
{[%clk 0:03:46.5]} 14. Nge2 {[%clk 0:03:17.7]} 14... Nxe5 {[%clk 0:03:37.1]} 15.
Bxe5 {[%clk 0:03:09.7]} 15... Qxe5 {[%clk 0:03:34.7]} 16. f3 {[%clk 0:03:07.2]}
16... Qc5 {[%clk 0:03:22.8]} 17. Nd5 {[%clk 0:02:38.6]} 17... Rxd5 {[%clk
0:02:57.4]} 18. Rxd5 {[%clk 0:02:32.5]} 18... Qxd5 {[%clk 0:02:52.7]} 19. Qxc7+
{[%clk 0:02:20.8]} 19... Kxc7 {[%clk 0:02:47.9]} 20. exd5 {[%clk 0:02:18.3]}
20... Re8 {[%clk 0:02:45.8]} 21. Nc3 {[%clk 0:02:16.8]} 21... Bxc3 {[%clk
0:02:41.6]} 22. bxc3 {[%clk 0:02:15.3]} 22... Re2 {[%clk 0:02:41]} 23. a4 {[%clk
0:02:05.9]} 23... Ra2 {[%clk 0:02:38.9]} 24. h4 {[%clk 0:01:51.9]} 24... Ra1+
{[%clk 0:02:36.9]} 0-1

[Event "Live Chess"]
[Site "Chess.com"]
[Date "2024.06.02"]
[Round "-"]
[White "Bradfield133"]
[Black "MaksymYurii"]
[Result "1-0"]
[WhiteElo "1836"]
[BlackElo "999"]
[TimeControl "300"]
[EndTime "5:07:23 PDT"]
[Termination "Bradfield133 won by resignation"]

1. c4 {[%clk 0:04:57.6]} 1... e5 {[%clk 0:04:59]} 2. g3 {[%clk 0:04:55.6]} 2...
Nc6 {[%clk 0:04:58.3]} 3. Bg2 {[%clk 0:04:54.7]} 3... Nf6 {[%clk 0:04:57.4]} 4.
Nc3 {[%clk 0:04:53.7]} 4... Bc5 {[%clk 0:04:53.3]} 5. e3 {[%clk 0:04:51.8]} 5...
d6 {[%clk 0:04:47.9]} 6. Nge2 {[%clk 0:04:49.8]} 6... O-O {[%clk 0:04:44.2]} 7.
O-O {[%clk 0:04:48.5]} 7... a6 {[%clk 0:04:43.1]} 8. h3 {[%clk 0:04:43.1]} 8...
h6 {[%clk 0:04:41.3]} 9. b3 {[%clk 0:04:37.9]} 9... b5 {[%clk 0:04:36.5]} 10.
Bxc6 {[%clk 0:04:31.3]} 10... bxc4 {[%clk 0:04:31.4]} 11. bxc4 {[%clk
0:04:19.3]} 11... Rb8 {[%clk 0:04:26.4]} 12. Bg2 {[%clk 0:04:16]} 12... Bb7
{[%clk 0:04:24.7]} 13. Nd5 {[%clk 0:04:09.4]} 13... Bxd5 {[%clk 0:04:14.2]} 14.
cxd5 {[%clk 0:04:07.5]} 14... Rb5 {[%clk 0:04:09.8]} 15. a4 {[%clk 0:03:59.2]}
15... Ra5 {[%clk 0:03:52.2]} 16. d4 {[%clk 0:03:56]} 16... exd4 {[%clk
0:03:49.9]} 17. Nxd4 {[%clk 0:03:54.9]} 17... Bxd4 {[%clk 0:03:47.4]} 18. Qxd4
{[%clk 0:03:53.1]} 18... Qd7 {[%clk 0:03:42.2]} 19. Bb2 {[%clk 0:03:49]} 19...
Rxa4 {[%clk 0:03:33.9]} 20. Qxa4 {[%clk 0:03:43.8]} 20... Qf5 {[%clk 0:03:27.4]}
21. Qxa6 {[%clk 0:03:28.9]} 21... Nxd5 {[%clk 0:03:19.7]} 22. Ra5 {[%clk
0:03:15]} 22... Nb6 {[%clk 0:03:12.8]} 23. Rxf5 {[%clk 0:03:12.3]} 1-0

[Event "Live Chess"]
[Site "Chess.com"]
[Date "2024.06.02"]
[Round "-"]
[White "bonantagulo"]
[Black "Grace6363"]
[Result "1-0"]
[WhiteElo "2226"]
[BlackElo "1142"]
[TimeControl "300"]
[EndTime "5:07:24 PDT"]
[Termination "bonantagulo won by checkmate"]

1. d4 {[%clk 0:04:58.1]} 1... Nf6 {[%clk 0:04:56.7]} 2. c4 {[%clk 0:04:57.1]}
2... g6 {[%clk 0:04:54.9]} 3. Nf3 {[%clk 0:04:52.9]} 3... Bg7 {[%clk 0:04:50.2]}
4. Nc3 {[%clk 0:04:52.3]} 4... d5 {[%clk 0:04:48.8]} 5. cxd5 {[%clk 0:04:50.8]}
5... Nxd5 {[%clk 0:04:48.1]} 6. e4 {[%clk 0:04:50.4]} 6... Nxc3 {[%clk
0:04:47.3]} 7. bxc3 {[%clk 0:04:50.3]} 7... O-O {[%clk 0:04:46.6]} 8. Be2 {[%clk
0:04:47.7]} 8... c5 {[%clk 0:04:45.8]} 9. O-O {[%clk 0:04:44.8]} 9... Nc6 {[%clk
0:04:45]} 10. Be3 {[%clk 0:04:36]} 10... Qa5 {[%clk 0:04:43.3]} 11. d5 {[%clk
0:04:14.4]} 11... Bxc3 {[%clk 0:04:36.3]} 12. dxc6 {[%clk 0:04:10.6]} 12... Bxa1
{[%clk 0:04:35]} 13. Qxa1 {[%clk 0:04:10.5]} 13... bxc6 {[%clk 0:04:33.3]} 14.
Bh6 {[%clk 0:04:04.7]} 14... Rd8 {[%clk 0:04:23.5]} 15. Qg7# {[%clk 0:04:02.8]}
1-0

[Event "Live Chess"]
[Site "Chess.com"]
[Date "2024.06.02"]
[Round "-"]
[White "GEMdzq"]
[Black "Dhaydon19"]
[Result "0-1"]
[WhiteElo "2292"]
[BlackElo "2639"]
[TimeControl "300"]
[EndTime "5:07:25 PDT"]
[Termination "Dhaydon19 won by resignation"]

1. e4 {[%clk 0:04:56.5]} 1... c6 {[%clk 0:04:58.3]} 2. d4 {[%clk 0:04:55.2]}
2... d5 {[%clk 0:04:58]} 3. e5 {[%clk 0:04:54.4]} 3... c5 {[%clk 0:04:57.2]} 4.
dxc5 {[%clk 0:04:52.9]} 4... Nc6 {[%clk 0:04:56]} 5. Bb5 {[%clk 0:04:50]} 5...
e6 {[%clk 0:04:55]} 6. Be3 {[%clk 0:04:47.2]} 6... Bd7 {[%clk 0:04:53.8]} 7.
Bxc6 {[%clk 0:04:42.3]} 7... Bxc6 {[%clk 0:04:52]} 8. b4 {[%clk 0:04:38.4]} 8...
Qc7 {[%clk 0:04:49.6]} 9. Nf3 {[%clk 0:04:36.9]} 9... Ne7 {[%clk 0:04:44.8]} 10.
Bd4 {[%clk 0:04:32.4]} 10... Nf5 {[%clk 0:04:42.4]} 11. O-O {[%clk 0:04:30.8]}
11... b6 {[%clk 0:04:39.7]} 12. cxb6 {[%clk 0:04:20.7]} 12... axb6 {[%clk
0:04:37.4]} 13. c3 {[%clk 0:04:19.5]} 13... Be7 {[%clk 0:04:34.4]} 14. Re1
{[%clk 0:04:17.4]} 14... O-O {[%clk 0:04:29.8]} 15. a4 {[%clk 0:04:14.1]} 15...
Nxd4 {[%clk 0:04:26.5]} 16. Nxd4 {[%clk 0:04:12.2]} 16... Bd7 {[%clk 0:04:24.2]}
17. Qd3 {[%clk 0:04:04.7]} 17... Rxa4 {[%clk 0:04:19.1]} 18. Rxa4 {[%clk
0:04:00.8]} 18... Bxa4 {[%clk 0:04:14.5]} 19. b5 {[%clk 0:03:55.1]} 19... Bc5
{[%clk 0:04:13.4]} 20. Nd2 {[%clk 0:03:49.1]} 20... Bxd4 {[%clk 0:04:07.3]} 21.
cxd4 {[%clk 0:03:49]} 21... Rc8 {[%clk 0:04:04.4]} 22. h4 {[%clk 0:03:36.3]}
22... h6 {[%clk 0:04:01.6]} 23. Ra1 {[%clk 0:03:16.8]} 23... Bc2 {[%clk
0:03:55.6]} 24. Qf3 {[%clk 0:03:10.9]} 24... Bg6 {[%clk 0:03:51.4]} 25. h5
{[%clk 0:03:01]} 25... Bh7 {[%clk 0:03:50.3]} 26. Ra6 {[%clk 0:02:44.8]} 26...
Qc1+ {[%clk 0:03:45.3]} 27. Nf1 {[%clk 0:02:40]} 27... Qb1 {[%clk 0:03:42.7]}
28. Ra7 {[%clk 0:02:35.2]} 28... Rf8 {[%clk 0:03:40.4]} 29. Ra3 {[%clk
0:02:26.6]} 29... Qxb5 {[%clk 0:03:36.7]} 30. Ne3 {[%clk 0:02:20]} 30... Qb4
{[%clk 0:03:32.6]} 31. Ng4 {[%clk 0:02:12.4]} 31... Qxd4 {[%clk 0:03:26.2]} 32.
Nxh6+ {[%clk 0:01:57.9]} 32... gxh6 {[%clk 0:03:21.6]} 33. Qf6 {[%clk
0:01:56.8]} 33... Qd1+ {[%clk 0:02:59.9]} 34. Kh2 {[%clk 0:01:55.5]} 34... Qxh5+
{[%clk 0:02:59]} 35. Rh3 {[%clk 0:01:54.8]} 35... Qf5 {[%clk 0:02:54.7]} 36.
Qxh6 {[%clk 0:01:45.8]} 36... Qxe5+ {[%clk 0:02:50.9]} 37. f4 {[%clk 0:01:44.5]}
37... Qg7 {[%clk 0:02:49.4]} 38. Rg3 {[%clk 0:01:39]} 38... Bg6 {[%clk
0:02:47.8]} 39. Qg5 {[%clk 0:01:34.4]} 39... d4 {[%clk 0:02:46.8]} 40. Qb5
{[%clk 0:01:32.1]} 40... d3 {[%clk 0:02:44.6]} 41. Qxb6 {[%clk 0:01:30]} 41...
Qh6+ {[%clk 0:02:41.6]} 42. Rh3 {[%clk 0:01:26]} 42... Qxf4+ {[%clk 0:02:40.1]}
43. Kg1 {[%clk 0:01:24.5]} 43... d2 {[%clk 0:02:35.9]} 0-1